lending/lending_fUSD_20260209
["ID","MTS","AMOUNT","RATE_DAILY","PERIOD"]
[404918242,1770679833430,-150.0,0.0001637,2]
[404918243,1770679833440,-500.0,0.0001637,2]
[404918244,1770679833450,-500.0,0.0001637,2]
[404918245,1770679833459,-150.0,0.0001637,2]
[404918246,1770679833469,-150.0,0.0001637,2]
[404918247,1770679833479,-150.0,0.0001637,2]
[404918248,1770679833489,-150.0,0.0001637,2]
[404918249,1770679833498,-150.0,0.0001637,2]
[404918250,1770679833509,-6102.57037478,0.00016379,2]
[404918251,1770679833519,-200.0,0.00016425,2]
[404918252,1770679833528,-150.0,0.00016425,2]
[404918253,1770679833538,-500.0,0.00016425,2]
[404918254,1770679833550,-177.48360594,0.00016425,2]
[404918255,1770679833560,-500.0,0.00016425,2]
[404918256,1770679833569,-500.0,0.00016425,2]
[404918257,1770679833579,-282.92340475,0.00016425,2]
[404918258,1770679833589,-221.24334971,0.00016425,2]
[404918259,1770679833599,-150.0,0.00016425,2]
[404918260,1770679833609,-150.0,0.00016425,2]
[404918261,1770679833618,-150.0,0.00016425,2]
[404918262,1770679833628,-510.0,0.00016429,2]
[404918263,1770679833638,-200.0,0.00016479,2]
[404918264,1770679833648,-200.0,0.00016479,2]
[404918265,1770679833657,-500.0,0.00016479,2]
[404918266,1770679833670,-500.0,0.00016479,2]
[404918267,1770679833680,-500.0,0.00016479,2]
[404918268,1770679833691,-150.0,0.00016479,2]
[404918269,1770679833700,-150.0,0.00016479,2]
[404918270,1770679833710,-193.99521436,0.00016479,2]
[404918271,1770679833720,-200.0,0.00016534,2]
[404918272,1770679833729,-500.0,0.00016534,2]
[404918273,1770679833739,-233.76578302,0.00016534,2]
[404918274,1770679833749,-500.0,0.00016534,2]
[404918275,1770679833759,-150.0,0.00016534,2]
[404918276,1770679833768,-289.28509973,0.00016534,2]
[404918277,1770679833778,-250.0,0.00016557,2]
[404918278,1770679833787,-345.3436019,0.00016586,2]
[404918279,1770679833797,-193.0,0.00016586,2]
[404918280,1770679833807,-300.0,0.00016586,2]
[404918281,1770679833816,-500.0,0.00016586,2]
[404918282,1770679833825,-200.0,0.00016589,2]
[404918283,1770679833835,-500.0,0.00016589,2]
[404918284,1770679833844,-500.0,0.00016589,2]
[404918285,1770679833854,-240.49203217,0.00016589,2]
[404918286,1770679833863,-6386.23260878,0.00016599,2]
[404918287,1770679833872,-1680.0,0.00016613,2]
[404918288,1770679833881,-200.0,0.00016644,2]
[404918289,1770679833891,-500.0,0.00016644,2]
[404918290,1770679833901,-500.0,0.00016644,2]
[404918291,1770679833910,-1054.73,0.00016651,2]
[404918292,1770679833919,-500.0,0.00016685,2]
[404918293,1770679833928,-200.0,0.00016699,2]
[404918294,1770679833938,-500.0,0.00016699,2]
[404918295,1770679833947,-472.65020243,0.00016699,2]
[404918296,1770679833957,-165.74,0.00016712,2]
[404918297,1770679834212,-1000.0,0.00016735,2]
[404918298,1770679834223,-501.0,0.0001674,2]
[404918299,1770679834234,-6386.23260877,0.00016744,2]
[404918300,1770679834243,-200.0,0.00016753,2]
[404918301,1770679834253,-500.0,0.00016753,2]
[404918302,1770679834262,-293.71897088,0.00016787,2]
[404918303,1770679834272,-200.0,0.00016808,2]
[404918304,1770679834281,-620.57749269,0.00016808,2]
[404918305,1770679834291,-2411.71,0.00016862,2]
[404918306,1770679834300,-200.0,0.00016863,2]
[404918307,1770679834309,-1500.0,0.00016868,2]
[404918308,1770679834318,-1500.0,0.00016868,2]
[404918309,1770679834327,-6386.23260877,0.00016888,2]
[404918310,1770679834337,-5000.0,0.000169,6]
[404918311,1770679834346,-957.10371252,0.0001691,2]
[404918312,1770679834357,-1000.0,0.0001691,2]
[404918313,1770679834369,-1000.0,0.0001691,2]
[404918314,1770679834379,-1000.0,0.0001691,2]
[404918315,1770679834390,-1000.0,0.0001691,2]
[404918316,1770679834400,-1000.0,0.0001691,2]
[404918317,1770679834409,-1000.0,0.0001691,2]
[404918318,1770679834419,-1000.0,0.0001691,2]
[404918319,1770679834428,-1000.0,0.0001691,2]
[404918320,1770679834437,-1000.0,0.0001691,2]
[404918321,1770679834446,-1000.0,0.0001691,2]
[404918322,1770679834455,-1000.0,0.0001691,2]
[404918323,1770679834465,-1008.73265454,0.0001691,2]
[404918324,1770679834474,-1000.0,0.0001691,2]
[404918325,1770679834483,-1000.0,0.0001691,2]
[404918326,1770679834493,-1000.0,0.0001691,2]
[404918327,1770679834502,-1000.0,0.0001691,2]
[404918328,1770679834512,-1000.0,0.0001691,2]
[404918329,1770679834522,-1000.0,0.0001691,2]
[404918330,1770679834534,-1000.0,0.0001691,2]
[404918331,1770679834545,-1000.0,0.0001691,2]
[404918332,1770679834557,-1000.0,0.0001691,2]
[404918333,1770679834571,-1000.0,0.0001691,2]
[404918334,1770679834580,-1000.0,0.0001691,2]
[404918335,1770679834589,-500.74996921,0.0001691,2]
[404918336,1770679834602,-1000.0,0.0001691,2]
[404918337,1770679834611,-1000.0,0.0001691,2]
[404918338,1770679834622,-1000.0,0.0001691,2]
[404918339,1770679834631,-1000.0,0.0001691,2]
[404918340,1770679834642,-1000.0,0.0001691,2]
[404918341,1770679834651,-200.0,0.00016918,2]
[404918342,1770679834660,-200.0,0.00016973,2]
[404918343,1770679834670,-200.0,0.00016983,2]
[404918344,1770679834679,-6147.54124953,0.00017,2]
[404918345,1770679834689,-200.0,0.00017027,2]
[404918346,1770679834699,-6386.23260877,0.00017033,2]
[404918347,1770679834708,-200.0,0.00017082,2]
[404918348,1770679834718,-193.0,0.00017083,2]
[404918349,1770679834727,-300.0,0.00017084,2]
[404918350,1770679834737,-500.0,0.00017084,2]
[404918351,1770679834747,-250.0,0.00017084,2]
[404918352,1770679834757,-200.0,0.00017137,2]
[404918353,1770679834769,-6386.23260877,0.00017177,2]
[404918354,1770679834778,-578.7037,0.0001718,2]
[404918355,1770679834788,-578.7037,0.0001718,2]
[404918356,1770679834798,-578.7037,0.0001718,2]
[404918357,1770679834807,-578.7037,0.0001718,2]
[404918358,1770679834816,-203.76490766,0.00017192,2]
[404918359,1770679834825,-578.7037,0.0001721,2]
[404918360,1770679834835,-578.70371,0.0001721,2]
[404918361,1770679834845,-182.98982379,0.00017225,2]
[404918362,1770679834855,-500.0,0.00017315,2]
[404918363,1770679834866,-6386.23260877,0.00017322,2]
[404918364,1770679834875,-572.35,0.000174,2]
[404918365,1770679834884,-2000.0,0.00017416,2]
[404918366,1770679834893,-2000.0,0.00017416,2]
[404918367,1770679834902,-1500.0,0.00017458,2]
[404918368,1770679834912,-1500.0,0.00017458,2]
[404918369,1770679834922,-415.03397432,0.00017458,2]
[404918370,1770679834933,-1500.0,0.00017458,2]
[404918371,1770679834943,-1500.0,0.00017458,2]
[404918372,1770679834952,-1500.0,0.00017458,2]
[404918373,1770679834962,-1500.0,0.00017458,2]
[404918374,1770679834971,-1127.75934903,0.00017458,2]
[404918375,1770679834980,-1500.0,0.00017458,2]
[404918376,1770679834990,-1500.0,0.00017458,2]
[404918377,1770679834999,-1500.0,0.00017458,2]
[404918378,1770679835009,-909.97644074,0.00017458,2]
[404918379,1770679835018,-1500.0,0.00017458,2]
[404918380,1770679835028,-1500.0,0.00017458,2]
[404918381,1770679835038,-1139.28491286,0.00017458,2]
[404918382,1770679835048,-880.11002163,0.00017458,2]
[404918383,1770679835058,-1648.80002866,0.00017458,2]
[404918384,1770679835067,-389.24153102,0.00017458,2]
[404918385,1770679835076,-591.24941023,0.00017458,2]
[404918386,1770679835085,-1500.0,0.00017458,2]
[404918387,1770679835094,-1500.0,0.00017458,2]
[404918388,1770679835103,-1179.35846184,0.00017458,2]
[404918389,1770679835113,-1000.0,0.00017458,2]
[404918390,1770679835123,-649.63646086,0.00017458,2]
[404918391,1770679835135,-1500.0,0.00017458,2]
[404918392,1770679835145,-1500.0,0.00017458,2]
[404918393,1770679835154,-1500.0,0.00017458,2]
[404918394,1770679835174,-6386.23260877,0.00017466,2]
[404918395,1770679835184,-326.0,0.00017495,2]
[404918396,1770679835193,-326.0,0.00017518,2]
[404918397,1770679835204,-326.0,0.00017548,2]
[404918398,1770679835214,-326.0,0.00017584,2]
[404918399,1770679835224,-2411.71,0.00017595,2]
[404918400,1770679835235,-6386.23260877,0.00017611,2]
[404918401,1770679835247,-326.0,0.00017618,2]
[404918402,1770679835256,-326.0,0.00017628,2]
[404918403,1770679835266,-376.0,0.00017638,2]
[404918404,1770679835276,-326.0,0.00017668,2]
[404918405,1770679835286,-6700.0,0.000177,6]
[404918406,1770679835298,-487.0,0.000177,2]
[404918407,1770679835308,-487.0,0.000177,2]
[404918408,1770679835318,-487.0,0.000177,2]
[404918409,1770679835328,-487.0,0.000177,2]
[404918410,1770679835338,-487.0,0.000177,2]
[404918411,1770679835347,-487.0,0.000177,2]
[404918412,1770679835358,-487.0,0.000177,2]
[404918413,1770679835367,-487.0,0.000177,2]
[404918414,1770679835378,-487.0,0.000177,2]
[404918415,1770679835387,-521.24,0.000177,2]
[404918416,1770679835397,-326.0,0.00017738,2]
[404918417,1770679835407,-326.0,0.00017747,2]
[404918418,1770679835416,-326.0,0.00017749,2]
[404918419,1770679835426,-6386.23260877,0.00017755,2]
[404918420,1770679835437,-8400.0,0.000178,6]
[404918421,1770679835447,-326.0,0.00017801,2]
[404918422,1770679835457,-326.0,0.00017804,2]
[404918423,1770679835466,-500.0,0.00017808,2]
[404918424,1770679835476,-500.0,0.00017808,2]
[404918425,1770679835486,-500.0,0.00017808,2]
[404918426,1770679835495,-500.0,0.00017808,2]
[404918427,1770679835504,-500.0,0.00017808,2]
[404918428,1770679835514,-500.0,0.00017808,2]
[404918429,1770679835523,-500.0,0.00017808,2]
[404918430,1770679835532,-500.0,0.00017808,2]
[404918431,1770679835542,-500.0,0.00017808,2]
[404918432,1770679835551,-500.0,0.00017808,2]
[404918433,1770679835560,-500.0,0.00017808,2]
[404918434,1770679835569,-434.52068895,0.00017808,2]
[404918435,1770679835579,-500.0,0.00017808,2]
[404918436,1770679835588,-228.52770819,0.0001786,2]
[404918437,1770679835597,-500.0,0.00017863,2]
[404918438,1770679835607,-326.0,0.00017872,2]
[404918439,1770679835616,-326.0,0.00017877,2]
[404918440,1770679835625,-10000.0,0.000179,2]
[404918441,1770679835634,-293.71897088,0.000179,2]
[404918442,1770679835643,-1600.0,0.000179,6]
[404918443,1770679835653,-6386.23260877,0.000179,2]
[404918444,1770679835662,-1238.69804382,0.000179,2]
[404918445,1770679835671,-865.81820813,0.000179,2]
[404918446,1770679835681,-326.0,0.00017901,2]
[404918447,1770679835698,-326.0,0.00017906,2]
[404918448,1770679835718,-500.0,0.00017918,2]
[404918449,1770679835739,-2500.0,0.00017964,2]
[404918450,1770679835752,-2500.0,0.00017964,2]
[404918451,1770679835764,-500.0,0.00017972,2]
[404918452,1770679835776,-3531.0,0.00017973,2]
[404918453,1770679835788,-150.0,0.00017973,2]
[404918454,1770679835799,-150.0,0.00017973,2]
[404918455,1770679835813,-313.77165896,0.0001799,2]
[404918456,1770679835831,-313.77165896,0.0001799,2]
[404918457,1770679835855,-313.77165896,0.00017996,2]
[404918458,1770679835875,-500.0,0.00017999,2]
[404918459,1770679835886,-500.0,0.00017999,2]
[404918460,1770679835895,-500.0,0.00017999,2]
[404918461,1770679835906,-500.0,0.00017999,2]
[404918462,1770679835916,-500.0,0.00017999,2]
[404918463,1770679835927,-500.0,0.00017999,2]
[404918464,1770679835938,-500.0,0.00017999,2]
[404918465,1770679835950,-500.0,0.00017999,2]
[404918466,1770679835961,-704744.53721128,0.00018,2]
[404918467,1770679835973,-195705.84532641,0.00018,2]
[404918468,1770679836100,-200665.46441413,0.00018,2]
[404918469,1770679836114,-296885.60582089,0.00018,2]
[404918470,1770679836129,-421192.14125416,0.00018,2]
[404918471,1770679836144,-1691.67677193,0.00018,2]
[404918472,1770679836156,-293.48857706,0.00018,2]
[404918473,1770679836168,-4465.33235881,0.00018,2]
[404918474,1770679836179,-394.17718249,0.00018,2]
[404918475,1770679836195,-10095.36304,0.00018,2]
[404918478,1770679837875,-500.0,0.00016363,2]
[404918479,1770679837885,-151.0,0.00016363,2]
[404918480,1770679837895,-259.36021964,0.00016425,2]
[404918481,1770679837904,-6102.57037478,0.00016632,2]
[404918482,1770679837914,-1000.0,0.0001691,2]
[404918483,1770679837924,-298.27829277,0.00017458,2]
[404918484,1770679837934,-1606936.29103162,0.00018,2]
[404918485,1770679837944,-1026.76595694,0.00018,2]
[404918486,1770679837956,-1000.0,0.00018,2]
[404918487,1770679837966,-1000.0,0.00018,2]
[404918488,1770679837975,-1000.0,0.00018,2]
[404918489,1770679837985,-1000.0,0.00018,2]
[404918490,1770679837994,-1000.0,0.00018,2]
[404918491,1770679838004,-1000.0,0.00018,2]
[404918492,1770679838013,-1000.0,0.00018,2]
[404918493,1770679838023,-1000.0,0.00018,2]
[404918494,1770679838034,-1000.0,0.00018,2]
[404918495,1770679838043,-1000.0,0.00018,2]
[404918496,1770679838053,-1000.0,0.00018,2]
[404918497,1770679838063,-1000.0,0.00018,2]
[404918498,1770679838072,-1000.0,0.00018,2]
[404918499,1770679838082,-1000.0,0.00018,2]
[404918500,1770679838091,-1000.0,0.00018,2]
[404918501,1770679838100,-1000.0,0.00018,2]
[404918502,1770679838110,-1000.0,0.00018,2]
[404918503,1770679838119,-1000.0,0.00018,2]
[404918504,1770679838128,-1000.0,0.00018,2]
[404918505,1770679838138,-1000.0,0.00018,2]
[404918506,1770679838148,-1000.0,0.00018,2]
[404918507,1770679838158,-1000.0,0.00018,2]
[404918508,1770679838168,-1000.0,0.00018,2]
[404918509,1770679838178,-153.1792721,0.00018,2]
[404918510,1770679838188,-679904.28013315,0.00018,2]
[404918511,1770679838200,-251.80538329,0.00018,2]
[404918512,1770679838211,-20700.20653415,0.00018,2]
[404918513,1770679838223,-436.75223375,0.00018,2]
[404918548,1770679839958,-6102.57037478,0.00016886,2]
[404918549,1770679839967,-1767.08849085,0.000179,2]
[404918550,1770679839977,-9834.67617394,0.00018,2]
[404918551,1770679839990,-1290658.44924143,0.00018,2]
[404918552,1770679840000,-152.388371,0.00018,2]
[404918553,1770679840009,-302.0,0.00018,2]
[404918554,1770679840018,-151.0,0.00018,2]
[404918555,1770679840027,-151.0,0.00018,2]
[404918556,1770679840038,-151.0,0.00018,2]
[404918557,1770679840047,-151.0,0.00018,2]
[404918558,1770679840059,-151.0,0.00018,2]
[404918559,1770679840069,-216.13351637,0.00018,2]
[404918560,1770679840078,-231.06460488,0.00018,2]
[404918561,1770679840088,-1949.90053795,0.00018006,2]
[404918562,1770679840097,-2003.10654395,0.00018006,2]
[404918563,1770679840106,-2000.0,0.00018006,2]
[404918564,1770679840116,-2000.0,0.00018006,2]
[404918565,1770679840125,-2000.0,0.00018006,2]
[404918566,1770679840135,-2000.0,0.00018006,2]
[404918567,1770679840144,-189.68869889,0.00018006,2]
[404918568,1770679840154,-1151.17562244,0.00018006,2]
[404918569,1770679840163,-2000.0,0.00018006,2]
[404918570,1770679840173,-1992.57355052,0.00018006,2]
[404918571,1770679840182,-591.29995662,0.00018006,2]
[404918572,1770679840191,-1023.60464344,0.00018006,2]
[404918573,1770679840200,-2000.0,0.00018006,2]
[404918574,1770679840209,-2000.0,0.00018006,2]
[404918575,1770679840218,-2000.0,0.00018006,2]
[404918576,1770679840228,-2000.0,0.00018006,2]
[404918577,1770679840238,-500.0,0.00018027,2]
[404918578,1770679840248,-200.0,0.00018028,2]
[404918579,1770679840259,-326.0,0.00018069,2]
[404918580,1770679840268,-166.73,0.00018077,2]
[404918581,1770679840277,-500.0,0.00018082,2]
[404918582,1770679840286,-326.0,0.00018113,2]
[404918583,1770679840296,-326.0,0.00018115,2]
[404918584,1770679840306,-326.0,0.00018136,2]
[404918585,1770679840315,-500.0,0.00018137,2]
[404918586,1770679840325,-326.0,0.00018143,2]
[404918587,1770679840335,-326.0,0.00018159,2]
[404918588,1770679840345,-326.0,0.0001817,2]
[404918589,1770679840355,-326.0,0.00018185,2]
[404918590,1770679840364,-500.0,0.00018192,2]
[404918591,1770679840374,-500.0,0.00018246,2]
[404918592,1770679840384,-770.0,0.00018272,2]
[404918593,1770679840393,-500.0,0.00018301,2]
[404918594,1770679840402,-500.0,0.00018356,2]
[404918595,1770679840412,-500.0,0.00018411,2]
[404918596,1770679840422,-500.0,0.00018466,2]
[404918597,1770679840431,-1059.86662212,0.00018512,2]
[404918598,1770679840441,-3000.0,0.00018512,2]
[404918599,1770679840450,-900.0,0.00018516,2]
[404918600,1770679840460,-419.79604183,0.0001852,2]
[404918601,1770679840469,-339.0,0.00018525,2]
[404918602,1770679840479,-1478.93057877,0.00018554,2]
[404918603,1770679840489,-2500.0,0.00018554,2]
[404918604,1770679840498,-2500.0,0.00018554,2]
[404918605,1770679840507,-2500.0,0.00018554,2]
[404918606,1770679840518,-2500.0,0.00018554,2]
[404918607,1770679840527,-2500.0,0.00018554,2]
[404918608,1770679840536,-1699.85353231,0.00018554,2]
[404918609,1770679840551,-2500.0,0.00018554,2]
[404918610,1770679840561,-1000.0,0.00018595,2]
[404918611,1770679840571,-397.62,0.00018704,2]
[404918612,1770679840580,-182.98982379,0.0001895,2]
[404918613,1770679840590,-4029.21385015,0.00019,2]
[404918614,1770679840599,-33854.70632159,0.00019,2]
[404918615,1770679840608,-3500.0,0.0001906,2]
[404918616,1770679840618,-1005.63067786,0.00019102,2]
[404918617,1770679840628,-3000.0,0.00019102,2]
[404918618,1770679840637,-3000.0,0.00019102,2]
[404918619,1770679840649,-502.0240799,0.00019102,2]
[404918620,1770679840658,-3000.0,0.00019102,2]
[404918621,1770679840667,-514.87292919,0.00019102,2]
[404918622,1770679840676,-159.54417137,0.00019178,2]
[404918623,1770679840685,-151.0,0.00019178,2]
[404918624,1770679840694,-151.0,0.00019178,2]
[404918625,1770679840703,-250.11398482,0.00019178,2]
[404918626,1770679840713,-150.0,0.00019391,2]
[404918627,1770679840723,-4000.0,0.00019608,2]
[404918628,1770679840732,-166.66,0.00019635,2]
[404918629,1770679840741,-269.53557665,0.0001965,2]
[404918630,1770679840751,-455.48148718,0.0001965,2]
[404918631,1770679840761,-3500.0,0.0001965,2]
[404918632,1770679840770,-150.0,0.00019726,2]
[404918633,1770679840779,-150.0,0.00019781,2]
[404918634,1770679840789,-200.7490249,0.00019836,2]
[404918635,1770679840798,-500.0,0.00019945,2]
[404918636,1770679840807,-1535.13611382,0.0002,2]
[404918637,1770679840817,-176.71988697,0.0002,2]
[404918638,1770679840826,-4011.39786322,0.0002,2]
[404918639,1770679840838,-854.0836,0.0002,2]
[404918640,1770679840849,-1361.29,0.0002,2]
[404918641,1770679840860,-19399.11039053,0.0002,2]
[404918642,1770679840870,-8474.72602251,0.0002,4]
[404918643,1770679840882,-4654.09920001,0.0002,4]
[404918644,1770679840893,-276.871998,0.0002,4]
[404918645,1770679840904,-506.37642362,0.0002,4]
[404918646,1770679840915,-5162.82916256,0.0002,4]
[404918647,1770679840927,-4619.849466,0.0002,4]
[404918650,1770679843688,500.0,0.00016363,2]
[404918652,1770679844064,-1000.0,0.0001691,2]
[404918653,1770679844075,-1000.1049965,0.00017139,2]
[404918654,1770679845294,-410.39994,0.00017139,2]
[404918655,1770679845307,-345.0,0.00017139,2]
[404918656,1770679845318,-1000.0,0.00017139,2]
[404918657,1770679845330,-3347.06543828,0.00017139,2]
[404918658,1770679845340,-1500.0,0.00017458,2]
[404918659,1770679845350,-1495.52070249,0.00018006,2]
[404918660,1770679845361,-394.38035986,0.0002,4]
[404918665,1770679845926,-34511.0,0.0002,4]
[404918666,1770679845938,-640.34,0.0002,4]
[404918667,1770679845992,-1149.0,0.0002,4]
[404918698,1770679848613,-300.52965657,0.0002,4]
[404918699,1770679848625,-845.0,0.0002,4]
[404918700,1770679848636,-652.882568,0.0002,4]
[404918701,1770679848647,-5159.45722785,0.0002,4]
[404918703,1770679856985,639.66,0.00025647,120]
[404918704,1770679857185,639.66,0.00028212,120]
[404918705,1770679857611,639.66,0.00030777,120]
[404918706,1770679875509,7211.49464185,0.00015599,2]
[404918707,1770679875706,1338.10693468,0.00015599,2]
[404918708,1770679880078,500.0,0.00016363,2]
[404918709,1770679886173,272.81888533,0.00016363,2]
[404918710,1770679886770,677.58953814,0.00015618,2]
[404918711,1770679886829,10000.01,0.00015618,2]
[404918712,1770679887105,10000.01,0.00015618,2]
[404918713,1770679887167,10000.01,0.00015618,2]
[404918714,1770679887231,2634.98816186,0.00015618,2]
[404918715,1770679890744,250.0,0.00023,30]
[404918716,1770679891036,250.0,0.00023,30]
[404918717,1770679891325,250.0,0.00023,30]
[404918718,1770679891621,250.0,0.00023,30]
[404918719,1770679917449,1000.0,0.00015618,2]
[404918720,1770679957131,553.24,0.000356,30]
[404918722,1770680149029,497.91,0.000356,30]
[404918723,1770680168223,552.593064,7.945e-05,2]
[404918724,1770680187720,-2500.0,0.00015627,2]
[404918725,1770680203475,-500.0,0.00015672,2]
[404918726,1770680203553,-501.02841722,0.00015672,2]
[404918727,1770680312397,500.0,0.00015672,2]
[404918729,1770680339256,448.12,0.000356,30]
[404918730,1770680397332,172.0,9.8e-07,2]
[404918731,1770680466050,-500.0,0.00015773,2]
[404918732,1770680466128,-500.0,0.00015773,2]
[404918733,1770680466216,-282.0,0.00015773,2]
[404918734,1770680467212,-9076.43877414,0.00015823,2]
[404918735,1770680467645,-4786.40877414,0.00015823,2]
[404918736,1770680467716,-427.19245172,0.00015823,2]
[404918737,1770680467792,-300.0,0.00015841,2]
[404918738,1770680467869,-513.95291761,0.00015841,2]
[404918739,1770680468071,-8372.10416478,0.00015874,2]
[404918740,1770680468149,-583.59583522,0.00015874,2]
[404918741,1770680468227,-195.0,0.0001591,2]
[404918742,1770680468308,-250.0,0.00016047,2]
[404918743,1770680468382,-300.0,0.00016048,2]
[404918744,1770680468460,-362.4043,0.00016239,2]
[404918745,1770680468539,-200.0,0.00016272,2]
[404918746,1770680468618,-317.46234166,0.00016279,2]
[404918747,1770680468697,-921.99491625,0.00016279,2]
[404918748,1770680468777,-1200.0,0.0001632,2]
[404918749,1770680468862,-339.09521374,0.00016321,2]
[404918750,1770680469618,-660.90478626,0.00016321,2]
[404918751,1770680471597,-559.86662212,0.00016321,2]
[404918752,1770680471683,-220.92585205,0.00016361,2]
[404918753,1770680471769,-300.0,0.00016361,2]
[404918754,1770680472026,-500.0,0.00016363,2]
[404918755,1770680472105,-500.0,0.00016363,2]
[404918756,1770680472171,-578.20924308,0.00016363,2]
[404918757,1770680472250,-500.0,0.00016363,2]
[404918758,1770680472326,-500.0,0.00016363,2]
[404918759,1770680472398,-500.0,0.00016363,2]
[404918760,1770680472469,-500.0,0.00016363,2]
[404918761,1770680472545,-182.0065655,0.00016363,2]
[404918762,1770680472803,-317.9934345,0.00016363,2]
[404918763,1770680472893,-500.0,0.00016363,2]
[404918764,1770680472968,-500.0,0.00016363,2]
[404918765,1770680473043,-502.95206633,0.00016363,2]
[404918766,1770680473117,-500.0,0.00016363,2]
[404918767,1770680473195,-500.0,0.00016363,2]
[404918768,1770680473276,-500.0,0.00016363,2]
[404918769,1770680473358,-500.0,0.00016363,2]
[404918770,1770680473438,-500.0,0.00016363,2]
[404918771,1770680473516,-500.0,0.0001637,2]
[404918772,1770680473597,-72.28936332,0.0001637,2]
[404918773,1770680473754,-213.5402717,0.0001637,2]
[404918774,1770680473829,-574.88448747,0.0001637,2]
[404918775,1770680473910,-500.0,0.0001637,2]
[404918776,1770680473995,-517.43199638,0.0001637,2]
[404918777,1770680474077,-500.0,0.0001637,2]
[404918778,1770680474159,-500.0,0.0001637,2]
[404918779,1770680474242,-500.0,0.0001637,2]
[404918780,1770680474325,-568.57342212,0.0001637,2]
[404918781,1770680474415,-500.0,0.0001637,2]
[404918782,1770680474499,-170.39708458,0.0001637,2]
[404918783,1770680474583,-410.3554755,0.0001637,2]
[404918784,1770680474873,-89.6445245,0.0001637,2]
[404918785,1770680474960,-500.0,0.0001637,2]
[404918786,1770680475059,-500.0,0.0001637,2]
[404918787,1770680475150,-500.0,0.0001637,2]
[404918788,1770680475232,-500.0,0.0001637,2]
[404918789,1770680475318,-500.0,0.0001637,2]
[404918790,1770680475401,-500.0,0.0001637,2]
[404918791,1770680475484,-500.0,0.0001637,2]
[404918792,1770680475567,-500.0,0.0001637,2]
[404918793,1770680475649,-500.0,0.0001637,2]
[404918794,1770680475727,-320.720951,0.0001637,2]
[404918795,1770680476010,-179.279049,0.0001637,2]
[404918796,1770680476091,-500.0,0.0001637,2]
[404918797,1770680476170,-500.0,0.0001637,2]
[404918798,1770680476251,-500.0,0.0001637,2]
[404918799,1770680476333,-500.0,0.0001637,2]
[404918800,1770680476415,-500.0,0.0001637,2]
[404918801,1770680476498,-500.0,0.0001637,2]
[404918802,1770680476582,-500.0,0.0001637,2]
[404918803,1770680476660,-500.0,0.0001637,2]
[404918804,1770680476744,-500.0,0.0001637,2]
[404918805,1770680476825,-141.451902,0.0001637,2]
[404918806,1770680476995,-358.548098,0.0001637,2]
[404918807,1770680477080,-500.0,0.0001637,2]
[404918808,1770680477160,-500.0,0.0001637,2]
[404918809,1770680477242,-500.0,0.0001637,2]
[404918810,1770680477328,-500.0,0.0001637,2]
[404918811,1770680477416,-500.0,0.0001637,2]
[404918812,1770680477509,-500.0,0.0001637,2]
[404918813,1770680477594,-500.0,0.0001637,2]
[404918814,1770680477672,-500.0,0.0001637,2]
[404918815,1770680477749,-500.0,0.0001637,2]
[404918816,1770680478080,-500.0,0.0001637,2]
[404918817,1770680478157,-500.0,0.0001637,2]